Cogmind - Beta 17 *** ADVENTURER MODE // 2026.08.21 @ 18:06:56 Player: Cornelis Result: Destroyed by G-47 Trooper with Particle Gun Performance ------------- Evolutions (2) 1000 Regions Visited (5) 1000 Robots Destroyed (71) 355 Value Destroyed (2101) 2101 Prototype IDs (4) 80 Alien Tech Used (0) 0 Bonus (183) 183 TOTAL SCORE: 4719 Bonus ------- High Alert Combat Kills 183 Cogmind --------- Core Integrity 0/550 Matter 134/300 Energy 80/100 System Corruption 5% Temperature Cool (18) Movement Treading (145) Location -8/Storage Parts ------- > --- POWER (1) -------- (None) > --- PROPULSION (4) --- Advanced Treads Advanced Treads Advanced Treads > --- UTILITY (4) ------ (None) > --- WEAPON (2) ------- Advanced Beam Cannon > --- INVENTORY (5) ---- Medium Storage Unit Medium Storage Unit Heavy Assault Rifle Peak State ------------ > --- POWER ------------ Heavy Ion Engine > --- PROPULSION ------- Armored Wheel Armored Wheel Armored Wheel Armored Wheel > --- UTILITY ---------- High-capacity Storage Unit High-capacity Matter Pod Visual Processing Unit Advanced Targeting Computer > --- WEAPON ----------- Heavy Particle Gun Mini Grenade Launcher > --- INVENTORY -------- Ion Engine Improved Ion Engine Heavy Ion Engine Heavy Ion Engine Light Nuclear Core Armored Wheel Medium Storage Unit Medium Storage Unit Experimental Targeting Computer Heavy Particle Gun Advanced Beam Cannon Light Assault Rifle Light Assault Rifle Light Assault Rifle Heavy Assault Rifle Heavy Assault Rifle Grenade Launcher Grenade Launcher Improved Datajack [Rating: 28] Favorites ----------- Power Ion Engine Engine Ion Engine Propulsion Armored Wheel Treads Light Treads Leg Aluminum Leg Wheel Armored Wheel Utility High-capacity Matter Pod Storage High-capacity Matter Pod Processor Visual Processing Unit Protection Improved Light Armor Plating Weapon Grenade Launcher Energy Gun Small Laser Energy Cannon Advanced Beam Cannon Ballistic Gun Assault Rifle Launcher Grenade Launcher Special Melee Weapon Improved Datajack Build | -11 -10 -10 -9 -8 -8 ------- Run | Yrd Mat Min Mat Mat Sto Slots Evolved 4 | . . . 2 2 . Power . | . . . . . . Propulsion 2 | . . . 1 1 . Utility 2 | . . . 1 1 . Weapon . | . . . . . . Parts Attached 51 | 10 1 5 13 7 15 Power 7 | 2 . 1 . 2 2 Engine 7 | 2 . 1 . 2 2 Core . | . . . . . . Reactor . | . . . . . . Propulsion 18 | 4 . 1 4 1 8 Treads 5 | 1 . . . . 4 Leg 5 | 2 . . . . 3 Wheel 8 | 1 . 1 4 1 1 Hover . | . . . . . . Flight . | . . . . . . Utility 8 | 1 1 . 3 2 1 Device . | . . . . . . Storage 5 | 1 1 . 2 1 . Processor 2 | . . . . 1 1 Hackware . | . . . . . . Protection 1 | . . . 1 . . Artifact . | . . . . . . Weapon 18 | 3 . 3 6 2 4 Energy Gun 3 | 1 . . . 1 1 Energy Cannon 3 | . . . 3 . . Ballistic Gun 5 | 2 . . . 1 2 Ballistic Cannon . | . . . . . . Launcher 5 | . . 3 1 . 1 Special Weapon . | . . . . . . Impact Weapon . | . . . . . . Slashing Weapon . | . . . . . . Piercing Weapon . | . . . . . . Special Melee Weapon 2 | . . . 2 . . Unidentified Prototypes 4 | . . . 1 . 3 Parts Lost 23 | . . 4 . . 19 Power 5 | . . 1 . . 4 Propulsion 7 | . . 1 . . 6 Utility 4 | . . . . . 4 Weapon 7 | . . 2 . . 5 Highest Loss Streak 18 | . . 4 . . 18 To Critical Strikes . | . . . . . . Average Backups 12 | 2 8 9 9 13 17 Power 2 | . 1 1 1 2 4 Propulsion 1 | . 3 2 . 1 . Utility 1 | . 1 1 1 2 3 Weapon 5 | . 2 3 5 6 8 Tool/Special . | . . . . . . Unused Backups 9 | . 1 . 3 . 5 Power 3 | . . . . . 3 Propulsion . | . . . . . . Utility 3 | . . . 2 . 1 Weapon 3 | . 1 . 1 . 1 Tool/Special . | . . . . . . Average Slot Usage (%) 96 | . 98 99 99 99 88 Engine 10 | . 14 14 11 9 8 Treads 2 | . . . 7 . 1 Leg 6 | . 28 17 2 . 1 Wheel 23 | . . 10 22 35 29 Storage 20 | . 26 28 22 18 15 Processor 4 | . . . . 9 10 Protection 5 | . . . 10 9 4 Energy Gun 3 | . 14 6 . 1 3 Energy Cannon 4 | . . . 11 2 2 Ballistic Gun 4 | . 14 13 1 2 . Launcher 7 | . . 8 9 8 8 Special Melee Weapon 1 | . . . . 3 1 Peak Build Rating 28 | 6 8 8 17 25 28 Average Rating 16 | 4 6 7 15 21 22 On Entrance 10 | . 6 8 8 16 25 Avg Prop Armor Cover (%) 6 | 3 . 7 6 . . Naked Turns 2 | . . . . . 2 Heaviest Build 61 | 13 23 26 30 61 61 Greatest Support 88 | 20 20 32 38 48 88 Greatest Overweight (x) 3 | 3 1 2 1 1 1 Average Overweight (x) . | . . . . . . Largest Inventory Capacity 20 | 8 10 10 10 20 20 Average Capacity 13 | 7 9 10 10 19 18 Most Carried 20 | 6 10 10 10 20 20 Average Carried 12 | 2 8 9 9 13 17 Final Capacity 20 | 8 10 10 10 20 5 Final Carried 20 | 6 10 10 10 20 3 Class Distribution -------------------- 97% | Mutant Dominant Class ---------------- Mutant | -10/Materials Mutant | -10/Mines Mutant | -9/Materials Mutant | -8/Materials Mutant | -8/Storage Resources | -11 -10 -10 -9 -8 -8 ----------- Run | Yrd Mat Min Mat Mat Sto Matter Collected 1746 | 315 28 234 170 466 533 Remotely . | . . . . . . Salvage Created 1834 | 90 39 197 195 558 755 Parts 114 | 2 6 13 11 35 47 Haulers Intercepted 3 | . . . 1 1 1 Recyclers Shooed 1 | . . 1 . . . Parts Field Recycled . | . . . . . . Retrieved Matter . | . . . . . . Parts Self-Destructed . | . . . . . . Prevented . | . . . . . . Parts Restored . | . . . . . . Kills | -11 -10 -10 -9 -8 -8 ------- Run | Yrd Mat Min Mat Mat Sto Combat Hostiles Destroyed 62 | . 3 16 4 15 24 Guns 21 | . 3 7 . 4 7 Cannons 4 | . . . 2 1 1 AOE 37 | . . 9 2 10 16 Classes Destroyed 14 | 1 1 2 3 2 5 Worker 5 | . . 1 . 1 3 Builder 1 | . . . . . 1 Hauler 3 | . . . 1 1 1 Recycler 3 | 1 . 1 1 . . Mechanic 2 | . . . . 1 1 Operator 1 | . . . . . 1 Watcher 5 | . . . 2 1 2 Swarmer 15 | . 3 5 3 4 . Grunt 16 | . . . . 8 8 Brawler 3 | . . . . . 3 Duelist 3 | . . . . . 3 Sentry 13 | . . . 1 3 9 Hunter 1 | . . . . . 1 Assembled 11 | . . 11 . . . Best Kill Streak 10 | 1 3 8 6 8 10 Combat Bots Only 9 | . 3 7 2 5 9 Max Kills in Single Turn 3 | 1 1 3 2 3 3 Gunslinging . | . . . . . . Exploded 3 | . . 3 1 3 2 Melee . | . . . . . . Uniques/NPCs Destroyed . | . . . . . . Combat | -11 -10 -10 -9 -8 -8 -------- Run | Yrd Mat Min Mat Mat Sto Hostile Shots Fired 291 | . 11 53 30 42 155 Missed 82 | . 1 15 7 20 39 Hits 209 | . 10 38 23 22 116 Melee 41 | . . . . . 41 Projectile 168 | . 10 38 23 22 75 Critical Strikes 14 | . . . . . 14 Part Disruptions 1 | . . 1 . . . Damage Taken 3212 | . 62 755 163 293 1939 Core 786 | . 23 154 54 10 545 Absorbed by Shields . | . . . . . . Ignored by Resistances 808 | . 20 113 52 84 539 Regen/Repaired (Parts) 92 | . . . . . 92 Core Remaining (%) 71 | 100 . 29 86 . . Volleys Fired 132 | 5 6 29 13 29 50 Largest 2 | 2 2 2 2 2 2 Hottest 136 | 60 60 60 136 98 113 Shots Fired 238 | 10 12 55 24 50 87 Gun 116 | 10 12 44 2 21 27 Cannon 39 | . . . 14 14 11 Launcher 83 | . . 11 8 15 49 Special . | . . . . . . Kinetic 55 | 5 6 26 2 12 4 Thermal 83 | 5 6 18 14 14 26 Explosive 83 | . . 11 8 15 49 Electromagnetic 17 | . . . . 9 8 Robot Hit Streak 37 | 9 20 8 13 17 37 Robot Miss Streak 3 | 1 . 2 3 1 1 Penetration Max . | . . . . . . Secondary Targets 1 | . . 1 . . . Max Gunslinging Chain 1 | . . 1 . . . Shots Hit Robots 170 | 9 11 34 12 37 67 Core Hits 175 | 2 4 26 10 44 89 Critical Kills . | . . . . . . Critical Parts Destroyed . | . . . . . . Critical Strikes . | . . . . . . Melee Attacks 3 | . . . . 3 . Impact . | . . . . . . Slashing . | . . . . . . Piercing . | . . . . . . Sneak Attacks 1 | . . . . 1 . Combat Hostiles 1 | . . . . 1 . Follow-up Attacks . | . . . . . . Damage Inflicted 6332 | 113 131 847 499 1311 3431 Guns 1223 | 113 131 333 19 198 429 Cannons 596 | . . . 205 206 185 Explosions 4508 | . . 514 275 904 2815 Melee . | . . . . . . Ramming 5 | . . . . 3 2 Kinetic 454 | 68 63 189 19 90 25 Thermal 1146 | 45 68 144 205 206 478 Explosive 4508 | . . 514 275 904 2815 Electromagnetic 219 | . . . . 108 111 Impact . | . . . . . . Slashing . | . . . . . . Piercing . | . . . . . . Highest Corruption 5 | . . 3 . . 5 Average Corruption 3 | . . 3 . . 4 Corruption Purged . | . . . . . . Corruption Blocked . | . . . . . . Effects 5 | . . 2 . . 3 Message Errors 3 | . . 2 . . 1 Heat Flow Errors 2 | . . . . . 2 Overload Shots . | . . . . . . Overflow Damage 42 | . . . 1 23 18 Projectiles 30 | . . . 1 18 11 Explosions 12 | . . . . 5 7 Melee . | . . . . . . Knockbacks . | . . . . . . Impact . | . . . . . . Kinetic . | . . . . . . Secondary . | . . . . . . Self-Inflicted Damage 151 | . . 15 . 31 105 Shots 11 | . . 1 . 4 6 Rammed 5 | . . . . 1 4 Targets Rammed 5 | . . . . 1 4 Kicked . | . . . . . . Crushed . | . . . . . . Highest Temperature 427 | . . 22 427 247 339 Average Temperature 105 | . . 12 209 77 94 Received Heat Transfer 710 | . . 80 27 135 468 Effects 11 | . . . 6 1 4 Shutdowns 1 | . . . 1 . . Energy Bleed 2 | . . . . 1 1 Interference 5 | . . . 2 . 3 Damage (major) 3 | . . . 3 . . Siege Activations . | . . . . . . Martial Activations . | . . . . . . Shielding Activations . | . . . . . . Robots Disrupted . | . . . . . . Combat Hostiles . | . . . . . . Robots Corrupted . | . . . . . . Combat Hostiles . | . . . . . . Parts Fried 1 | . . . . 1 . Impact Corruptions . | . . . . . . Robots Melted . | . . . . . . Combat Hostiles . | . . . . . . Parts Melted 1 | . . . 1 . . Heat Transferred 2194 | 100 150 325 370 370 879 Parts Sabotaged . | . . . . . . Parts Stolen . | . . . . . . Parts Stripped . | . . . . . . Power Chain Reactions . | . . . . . . Alert | -11 -10 -10 -9 -8 -8 ------- Run | Yrd Mat Min Mat Mat Sto Maximum Alert Level 3 | . . . . 1 3 Low Security (%) 71 | 100 100 100 100 73 16 Level 1 12 | . . . . 26 25 Level 2 15 | . . . . . 55 Level 3 . | . . . . . 2 Level 4 . | . . . . . . Level 5 . | . . . . . . High Security . | . . . . . . Max Security . | . . . . . . Peak Influence 718 | 5 70 108 92 281 718 Initial 91 | . . 13 . 25 91 Average 163 | 1 21 54 26 131 427 Influence Increases 1885 | 5 70 164 202 517 927 Destroy 0b10 Robot/C 1020 | . 60 100 80 300 480 Destroy 0b10 Robot/NC 100 | 5 . 10 20 20 45 Destroy Leader 266 | . 10 20 26 64 146 Successful Hack 25 | . . . . 15 10 Disable Machine 90 | . . . 27 . 63 Destroy Structure 324 | . . 34 49 88 153 Partial Spotted 15 | . . . . . 15 Lose Combat Pursuer 45 | . . . . 30 15 Influence Decreases 1367 | 5 30 204 130 335 663 Entered New Map 237 | . . 27 . 47 163 Time Decay 732 | 5 30 137 130 160 270 Lost Part 230 | . . 40 . . 190 Lost Ally 40 | . . . . . 40 Purge Threat 128 | . . . . 128 . Squads Dispatched 6 | . . . . . 6 Investigation . | . . . . . . Extermination . | . . . . . . Reinforcement 2 | . . . . . 2 Assault 3 | . . . . . 3 Garrison 1 | . . . . . 1 Intercept . | . . . . . . Searches Triggered . | . . . . . . Construction Impeded 1 | . . . . . 1 Haulers Reinforced . | . . . . . . Active Scanning Responses . | . . . . . . Cargo Convoy Interrupts . | . . . . . . Stealth | -11 -10 -10 -9 -8 -8 --------- Run | Yrd Mat Min Mat Mat Sto Distress Signals 3 | . . . 1 . 2 Communications Jammed . | . . . . . . Distress Signals . | . . . . . . Times Spotted 88 | . 6 18 8 18 38 Peak Tracking Total 11 | . 4 9 4 4 11 Tactical Retreats 4 | . . 1 . 2 1 Traps | -11 -10 -10 -9 -8 -8 ------- Run | Yrd Mat Min Mat Mat Sto Traps Triggered . | . . . . . . Indirectly . | . . . . . . Trap Hack Attempts . | . . . . . . Triggered . | . . . . . . Disarmed . | . . . . . . Reprogrammed . | . . . . . . Reused . | . . . . . . Traps Extracted . | . . . . . . Installed . | . . . . . . Triggered . | . . . . . . Machines | -11 -10 -10 -9 -8 -8 ---------- Run | Yrd Mat Min Mat Mat Sto Machines Disabled 10 | . . . 3 . 7 Max in Single Turn 2 | . . . 2 . 2 Machines Repaired . | . . . . . . Machines Dismantled . | . . . . . . Machines Sabotaged . | . . . . . . Overloaded Fab Kills . | . . . . . . Hacking | -11 -10 -10 -9 -8 -8 --------- Run | Yrd Mat Min Mat Mat Sto Machines Accessed 15 | . 2 . 2 4 7 Terminals 9 | . 1 . 1 2 5 Fabricators . | . . . . . . Repair Stations 1 | . . . . . 1 Recycling Units 3 | . 1 . . 1 1 Scanalyzers 2 | . . . 1 1 . Garrison Access . | . . . . . . Total Hacks 63 | . 7 . 7 19 30 Successful 43 | . 4 . 5 13 21 Failed 17 | . 3 . 1 5 8 Catastrophic . | . . . . . . Database Lockouts 3 | . . . 1 1 1 Manual 9 | . . . . 7 2 Terminals 41 | . 5 . 1 14 21 Fabricators . | . . . . . . Repair Stations 7 | . . . . . 7 Recycling Units 5 | . 2 . . 1 2 Scanalyzers 10 | . . . 6 4 . Garrison Access . | . . . . . . Terminal Hacks 26 | . 2 . . 9 15 Record 10 | . 1 . . 1 8 Open Door 3 | . . . . . 3 Emergency Access Points 1 | . . . . 1 . Recycling Unit Index 1 | . . . . 1 . Alert Level 1 | . . . . 1 . Unreport Threat 1 | . . . . 1 . Locate Traps 1 | . . . . 1 . Dispatch Records 2 | . . . . 2 . Recall Investigation 1 | . 1 . . . . Recall Reinforcements 1 | . . . . . 1 Hauler Manifests 2 | . . . . 1 1 Zone Layout 2 | . . . . . 2 Fabricator Hacks . | . . . . . . Repair Station Hacks 5 | . . . . . 5 Scan Component 3 | . . . . . 3 Repair 2 | . . . . . 2 Recycling Unit Hacks 4 | . 2 . . 1 1 Report Inventory 2 | . 1 . . 1 . Retrieve Components 2 | . 1 . . . 1 Scanalyzer 8 | . . . 5 3 . Retrieve Study 8 | . . . 5 3 . Garrison Access Hacks . | . . . . . . Unauthorized Hacks . | . . . . . . Terminals . | . . . . . . Fabricators . | . . . . . . Repair Stations . | . . . . . . Recycling Units . | . . . . . . Scanalyzers . | . . . . . . Garrison Access . | . . . . . . Data Cores Recovered . | . . . . . . Used . | . . . . . . Hacking Detections 13 | . 2 . 2 4 5 Full Trace Events 1 | . . . . . 1 Feedback Events . | . . . . . . Feedback Blocked . | . . . . . . Robot Schematics Acquired . | . . . . . . Robots Built . | . . . . . . Authchips . | . . . . . . Time . | . . . . . . Total Robot Build Rating . | . . . . . . Part Schematics Acquired . | . . . . . . Parts Built . | . . . . . . Authchips . | . . . . . . Time . | . . . . . . Total Part Build Rating . | . . . . . . Part Studies Acquired 7 | . . . 4 3 . Parts Repaired 2 | . . . . . 2 Time 64 | . . . . . 64 Parts Recycled . | . . . . . . Recycled Matter . | . . . . . . Retrieved Matter . | . . . . . . Retrieved Components 9 | . 2 . . . 7 Parts Scanalyzed . | . . . . . . Part Schematics Acquired . | . . . . . . Parts Damaged . | . . . . . . Bothacking | -11 -10 -10 -9 -8 -8 ------------ Run | Yrd Mat Min Mat Mat Sto Used RIF Installer . | . . . . . . Robots Hacked 1 | . . . . 1 . Non-combat . | . . . . . . Combat 1 | . . . . 1 . Robot Hacks Applied 1 | . . . . 1 . parse_system 1 | . . . . 1 . Relay Couplers Released . | . . . . . . Fabnet Peak Effective % . | . . . . . . Robots Rewired . | . . . . . . Allies Hacked . | . . . . . . Hacks Repelled . | . . . . . . Allies | -11 -10 -10 -9 -8 -8 -------- Run | Yrd Mat Min Mat Mat Sto Total Allies 2 | . . . . . 2 Largest Group 2 | . . . . . 2 Highest-Rated Group 62 | . . . . . 62 Highest-Rated Ally 31 | . . . . . 31 Total Orders . | . . . . . . Ally Attacks 5 | . . . . . 5 Total Damage 84 | . . . . . 84 Kills . | . . . . . . Allies Corrupted . | . . . . . . Allies Melted . | . . . . . . Intel | -11 -10 -10 -9 -8 -8 ------- Run | Yrd Mat Min Mat Mat Sto Active Infowar (turns) 806 | . . . . 355 451 Optics 806 | . . . . 355 451 Robot Analysis Total . | . . . . . . Derelict Logs Recovered 1 | . . 1 . . . Drone Launches . | . . . . . . Drone Recoveries . | . . . . . . Exploration | -11 -10 -10 -9 -8 -8 ------------- Run | Yrd Mat Min Mat Mat Sto Turns Passed 1902 | 74 159 281 490 355 543 Spaces Moved 1099 | 34 74 136 301 239 315 Core 11 | 9 . . . . 2 Treads 97 | 3 . . 78 . 16 Legs 159 | 17 74 45 . . 23 Wheels 832 | 5 . 91 223 239 274 Hover . | . . . . . . Flight . | . . . . . . Fastest Speed 50 | 50 120 100 86 90 50 Average Speed 120 | 119 184 135 136 97 99 Slowest Speed 260 | 200 190 260 240 105 145 Overloaded Moves . | . . . . . . Propulsion Burnouts . | . . . . . . Robots Hopped . | . . . . . . Potential Cave-ins . | . . . . . . Cave-ins Triggered 1 | . . 1 . . . Exploration Rate (%) 26 | 4 15 38 24 26 53 Regions Visited 5 Branch Regions 2 Pre-discovered Areas . | . . . . . . Known Exits Taken . | . . . . . . Unknown Exits Taken 5 | 1 1 1 1 1 . Scrap Searched 1 | . . 1 . . . Spaces Dug . | . . . . . . Terrain Destroyed 371 | . . 51 53 104 163 Melee . | . . . . . . Projectile . | . . . . . . AOE 371 | . . 51 53 104 163 Terrain Rammed . | . . . . . . Walls Destroyed . | . . . . . . Machines Disabled . | . . . . . . Actions | -11 -10 -10 -9 -8 -8 --------- Run | Yrd Mat Min Mat Mat Sto Total 1416 | 52 87 176 355 306 440 Wait 38 | . 1 1 . 9 27 Move 1094 | 33 73 135 300 238 315 Hop . | . . . . . . Pick Up 38 | 4 5 4 10 10 5 Fast Attach 18 | 6 1 . 1 . 10 Attach 15 | . . 4 3 2 6 Detach . | . . . . . . Swap 52 | 4 . 3 15 13 17 Drop 21 | . 1 . 13 1 6 Fire 132 | 5 6 29 13 29 50 Melee 3 | . . . . 3 . Ram 2 | . . . . 1 1 Kick . | . . . . . . Crush 3 | . . . . . 3 Escape Stasis . | . . . . . . Rewire . | . . . . . . Trap . | . . . . . . Miscellaneous . | . . . . . . Route ------- -11/Scrapyard -10/Materials -10/Mines (discovered 2 exits: *Mat / Exi) -9/Materials -8/Materials -8/Storage (discovered 1 exit: [*Fac]) History --------- Turn | Location | Event 12 | -11/Scrapyard | Discovered new exit (range 16) 75 | -11/Scrapyard | Entered Materials 218 | -10/Materials | Discovered new exit (range 7) 234 | -10/Materials | Entered Mines 234 | -10/Mines | Discovered new exit (range 12) 238 | -10/Mines | Met a Derelict bent on vengeance 276 | -10/Mines | Assembled infested the area 312 | -10/Mines | Build established: Mutant 402 | -10/Mines | Crushed by falling debris 402 | -10/Mines | Core integrity fell below 50% 433 | -10/Mines | Lost 4 parts (1p1n2w) 437 | -10/Mines | Destroyed 7 combat bots 453 | -10/Mines | Identified exit to Exiles 515 | -10/Mines | Entered Materials 515 | -9/Materials | Evolved 2 slots: Propulsion x1, Utility x1 874 | -9/Materials | Discovered new exit (range 5) 891 | -9/Materials | Central database locked down 1005 | -9/Materials | Entered another Materials area 1005 | -8/Materials | Evolved 2 slots: Propulsion x1, Utility x1 1160 | -8/Materials | Central database locked down 1327 | -8/Materials | Discovered new exit (range 7) 1360 | -8/Materials | Entered Storage 1385 | -8/Storage | Central database locked down 1562 | -8/Storage | Found Prototype Processor 1733 | -8/Storage | Repaired Arm. Wheel+ 1760 | -8/Storage | First assault squad dispatched 1765 | -8/Storage | Repaired Arm. Wheel+? 1767 | -8/Storage | Met a pair of Derelict thieves 1790 | -8/Storage | Garrison activated, responded to threat 1827 | -8/Storage | Core integrity fell below 50% 1828 | -8/Storage | Destroyed 9 combat bots 1838 | -8/Storage | Core integrity fell below 20% 1893 | -8/Storage | Discovered new exit (range 16) 1903 | -8/Storage | Destroyed by G-47 Trooper with Particle Gun Last Messages --------------- K-01 Serf collects debris. Acquired 105 matter. Aluminum Leg destroyed. K-01 Serf cleans the Heavy Doors. R-06 Scavenger collects Wheel. The unstable cave ceiling collapses. R-06 Scavenger collects Lgt. Ion Engine. K-01 Serf collects debris. Acquired Adv. Treads. Carbon-fiber Leg destroyed. Acquired Adv. Treads. Imp. Ion Engine destroyed. Slammed into L-31 Rogue. Slammed into G-47 Trooper. Adv. Treads severed. Critical hit (Burn: +37). Slammed into G-47 Trooper. K-01 Serf collects debris. =UYR%VVZ=Q:FO U230 HX/OY00D=0/%U EXIT=FOUND Map ----- +----------------------------------------------------+ | ???????????????????????????????????? | | ???????????????????????????????????? | | ???????????????????????????????????? | | ???????????????????????????????????? | | ???????????????????????????????????? | | ???????????????????T???????????????? | | ????????????????? ??????????????? | | ?????????????????# #??????????????? | | ?????????????????# #??????????????? | | ?????????????????# ######?????????# | | ????????###+###### #?????????# | | ????????# T %+?????????# | | ????????# #?????????# | | ???###### #?????????# | | ???#= " # """"" +?????????# | | ???# =/m """"" #?????????# | | ???# =" ## """"" #????###### | | ???####T## m #????# | | ??????####g % #????# " | | ?????????# #????# " | | ?????????#gl ###### " | | ?????????# + | | ?????????#b ###"Y" # ####### " | | ?????????#l #?#""" = * #???# " | | ?????????# #?##### [* %##???# " | | ?????????# @ #?????##" "###???# | | ?????????# #?????# /!%%[#???###### | | ?????????# #?????# =[ ][#????????? | | ?????????# #?????#*[ []!#????????? | | ?????????# #?????#[*[[]]#????????? | | ?????????+ #?????########????????? | | ?????????# #?????????????????????? | | ?????????# #?????????????????????? | | ?????????# #?????????????????????? | | ?????????# < #?????????????????????? | | ?????????# #?????????????????????? | | ?????????#####?????????????????????? | | ???????????????????????????????????? | | ???????????????????????????????????? | | ???????????????????????????????????? | | ???????????????????????????????????? | | ???????????????????????????????????? | | ???????????????????????????????????? | | ???????????????????????????????????? | | | | | | | | | | | | | +----------------------------------------------------+ Best States ------------- Heat Dissipation 31 Energy Generation 14 Energy Capacity 280 Matter Stores 500 Matter Capacity 500 Sight Range 18 Terrain Scan Density 10 Armor Coverage 150 Resistance: KI 20 Resistance: TH 20 Resistance: EX 20 Resistance: EM 20 Resistance: I 20 Resistance: S 20 Resistance: P 20 Evasion (%) 55 Targeting Accuracy 8 Recoil Reduction 4 Offensive Hacking 10 Item Schematics ----------------- None Robot Schematics ------------------ None Fabricated ------------ Nothing Repaired ---------- Arm. Wheel | 8% | -8/Storage Studied --------- Grenade Launcher | -9/Materials | Hacked Mni. Grenade Launcher | -9/Materials | Hacked Ion Engine | -9/Materials | Hacked EM Shotgun | -9/Materials | Hacked Imp. Datajack | -8/Materials | Hacked Arm. Wheel | -8/Materials | Hacked Lgt. Assault Rifle | -8/Materials | Hacked Alien Tech Used ----------------- None Achievements -------------- DATA ERROR: Steam Global Achievement% Everything Is Under Control For Emergencies Only GoHome() I Have A Map? Item+ Oops Organ Harvest Remodeling Resistances Are Futile Shopping List Significant Disruption Spot Them First There's More Where That Came From Unlikely Earthworm Challenges ------------ None Game ------ Seed PlasmaFlyingStatue Manual? 0 Play Time 01:26:53 Cumulative 1.7 hours Start 2026.08.20 @ 18:22:25 End 2026.08.21 @ 18:06:56 Sessions 5 Manual Loads 0 Difficulty Adventurer Special Mode None Game No. 4 Rogue 2 Adventurer 2 Explorer 0 Win Type - Total 0 Types 0/0/0/0/0/0/0/0/0/0 Lore% 6 Gallery% 4 Achievement% 5 Wizard Run 0 Options --------- Layout 1 ASCII 1 Keyboard 0 Movement Numpad Keybinds 0 Fullscreen 1 Font 48/Smallcaps Map View 50x35 Zoom Use 0% Tactical HUD 0 Map Filters NONE Filters NONE Steam 1 RUN: 6615c3d5-c7c4-4976-95b1-93b98344cb9d